bitfinex/quotes_SOLUSD_20240623
["timestamp","ask_amount","ask_price","bid_price","bid_amount"]
[1719168820216,16.2908,131.9,131.85,107.5841]
[1719168820512,16.2908,131.9,131.83,114.3853]
[1719168820898,16.2908,131.9,131.84,7.5849]
[1719168826209,16.2908,131.9,131.83,7.5853]
[1719168826412,16.2908,131.9,131.82,7.586]
[1719168826413,45.0,131.89,131.82,7.586]
[1719168827093,45.0,131.89,131.81,145.57]
[1719168827291,45.0,131.89,131.83,7.5854]
[1719168828114,45.0,131.89,131.82,7.5859]
[1719168829121,45.0,131.89,131.83,7.5855]
[1719168835133,45.0,131.89,131.82,7.5858]
[1719168837133,45.0,131.89,131.83,7.5853]
[1719168839733,15.8123,131.87,131.8,7.5871]
[1719168840033,15.8123,131.87,131.81,7.5865]
[1719168840242,15.8123,131.87,131.82,7.586]
[1719168840538,15.8123,131.87,131.79,200.0]
[1719168840704,15.8123,131.87,131.8,7.5868]
[1719168844932,15.8123,131.87,131.81,7.5866]
[1719168845117,15.8123,131.87,131.82,107.5859]
[1719168845637,15.8123,131.87,131.83,7.5854]
[1719168847036,15.8123,131.87,131.82,114.3859]
[1719168848440,15.8123,131.87,131.82,100.0]
[1719168849937,15.8123,131.87,131.81,114.3864]
[1719168853039,15.8123,131.87,131.81,107.5864]
[1719168853246,15.8123,131.87,131.82,7.586]
[1719168855234,15.8123,131.87,131.81,100.0]
[1719168855439,15.8123,131.87,131.78,107.5881]
[1719168855615,45.0,131.86,131.78,107.5881]
[1719168855816,22.9555,131.85,131.75,145.57]
[1719168856022,45.0,131.84,131.75,107.5899]
[1719168856417,52.9088206,131.84,131.75,107.5899]
[1719168856611,52.9088206,131.84,131.74,100.0]
[1719168856821,16.5519,131.83,131.74,7.5904]
[1719168857051,16.5519,131.83,131.73,100.0]
[1719168857052,45.0,131.82,131.75,7.5901]
[1719168858038,45.0,131.82,131.74,7.5906]
[1719168858544,45.0,131.82,131.75,7.59]
[1719168858921,45.0,131.82,131.76,7.7334883]
[1719168859629,45.0,131.82,131.76,0.1439883]
[1719168861445,45.0,131.82,131.76,100.1439883]
[1719168865045,45.0,131.82,131.76,107.7333883]
[1719168865252,16.5519,131.83,131.77,7.5888]
[1719168866054,16.5519,131.83,131.78,100.0]
[1719168868136,16.5519,131.83,131.76,106.9439883]
[1719168868347,16.5519,131.83,131.76,100.1439883]
[1719168870153,16.5519,131.83,131.76,114.5333883]
[1719168870962,16.5519,131.83,131.77,0.92124465]
[1719168871347,16.5519,131.83,131.76,114.5333883]
[1719168872164,16.5519,131.83,131.76,106.9439883]
[1719168874029,16.5519,131.83,131.76,114.5333883]
[1719168878247,16.5519,131.83,131.76,107.7333883]
[1719168879773,16.5519,131.83,131.76,100.1439883]
[1719168880967,51.4672,131.82,131.76,0.1439883]
[1719168886355,16.153,131.81,131.76,0.1439883]
[1719168888764,45.0,131.8,131.76,0.1439883]
[1719168900390,16.153,131.81,131.76,0.1439883]
[1719168902491,16.153,131.81,131.76,7.7333883]
[1719168902658,16.153,131.81,131.77,107.5889]
[1719168904691,22.3934,131.85,131.8,7.5869]
[1719168904867,15.7272,131.85,131.81,207.5865]
[1719168905296,15.7272,131.85,131.81,214.3865]
[1719168905486,22.3934,131.88,131.81,214.3865]
[1719168905796,22.3934,131.88,131.79,253.1576]
[1719168906095,22.3934,131.88,131.79,214.3876]
[1719168906992,22.3934,131.88,131.8,7.5872]
[1719168907187,45.0,131.87,131.8,7.5872]
[1719168907389,45.0,131.87,131.79,207.5875]
[1719168907590,45.0,131.87,131.79,214.3875]
[1719168907891,45.0,131.87,131.8,7.5872]
[1719168908094,22.3934,131.88,131.81,7.5866]
[1719168909805,22.3934,131.88,131.8,14.387]
[1719168910180,22.3934,131.88,131.8,7.587]
[1719168911001,22.3934,131.88,131.81,7.5866]
[1719168913604,22.3934,131.88,131.81,107.5866]
[1719168913983,22.3934,131.88,131.82,7.586]
[1719168915897,15.7272,131.88,131.83,206.8]
[1719168916208,15.7272,131.88,131.83,100.0]
[1719168918907,15.7272,131.88,131.82,7.5858]
[1719168919908,15.7272,131.88,131.81,207.5864]
[1719168920088,15.7272,131.88,131.81,214.3864]
[1719168921813,15.7272,131.88,131.81,207.5864]
[1719168922908,15.7272,131.88,131.82,7.586]
[1719168926847,6.1641,131.87,131.79,200.0]
[1719168927014,6.1641,131.87,131.79,100.0]
[1719168927316,14.07763597,131.87,131.79,107.5875]
[1719168927706,60.1954,131.86,131.78,7.5881]
[1719168929298,60.1954,131.86,131.79,7.5877]
[1719168931421,60.1954,131.86,131.8,7.5871]
[1719168931599,15.1954,131.86,131.8,7.5871]
[1719168932624,15.1954,131.86,131.81,100.0]
[1719168936108,15.1954,131.86,131.83,100.0]
[1719168941031,15.1954,131.86,131.81,206.8]
[1719168941217,15.1954,131.86,131.81,200.0]
[1719168943819,15.1954,131.86,131.81,206.8]
[1719168944833,15.1954,131.86,131.81,214.3863]
[1719168946821,15.1954,131.86,131.81,207.5863]
[1719168948911,23.05075832,131.89,131.85,7.5839]
[1719168949238,2.13432992,131.9,131.86,14.3835]
[1719168949551,15.1388,131.93,131.86,14.3835]
[1719168949552,23.04723741,131.93,131.86,14.3835]
[1719168949837,15.1388,131.93,131.89,107.582]
[1719168950216,7.90551093,131.98,131.91,107.5809]
[1719168950424,7.90551093,131.98,131.92,7.5803]
[1719168950623,27.45053978,131.99,131.92,7.5803]
[1719168951338,27.45053978,131.99,131.91,214.3806]
[1719168951524,21.3991,131.99,131.91,214.3806]
[1719168953444,21.3991,131.99,131.91,207.5806]
[1719168954319,21.3991,131.99,131.91,214.3806]
[1719168956216,21.3991,131.99,131.92,7.5803]
[1719168959844,21.3991,131.99,131.94,100.0]
[1719168960011,21.3991,131.99,131.94,107.5786]
[1719168960216,5.94774195,132.02,131.95,7.5784]
[1719168960411,6.0856,132.02,131.9,207.5812]
[1719168960639,18.03958763,132.01,131.91,7.5805]
[1719168960844,2.13888763,132.0,131.91,7.5805]
[1719168961746,47.13888763,132.0,131.91,7.5805]
[1719168962755,47.13888763,132.0,131.91,14.3805]
[1719168964230,47.13888763,132.0,131.91,6.8]
[1719168965548,47.13888763,132.0,131.9,207.5812]
[1719168965850,21.9863,131.99,131.9,214.3812]
[1719168966260,21.9863,131.99,131.9,207.5812]
[1719168966944,60.9007,131.98,131.88,207.5822]
[1719168967122,60.9007,131.98,131.88,214.3822]
[1719168967928,60.9007,131.98,131.88,207.5822]
[1719168968342,60.9007,131.98,131.89,7.5819]
[1719168969927,60.9007,131.98,131.9,7.5813]
[1719168970122,60.9007,131.98,131.89,7.5818]
[1719168970339,21.9863,131.97,131.86,218.9592]
[1719168970541,21.9863,131.95,131.86,100.0]
[1719168970849,45.0,131.94,131.85,45.63]
[1719168971153,45.0,131.94,131.85,52.43]
[1719168971328,45.0,131.94,131.87,7.5829]
[1719168972151,16.2965,131.93,131.86,7.5835]
[1719168973530,16.2965,131.93,131.87,7.5831]
[1719168976640,16.2965,131.93,131.87,200.0]
[1719168976959,16.2965,131.93,131.9,7.5812]
[1719168979467,16.2965,131.93,131.89,107.5818]
[1719168980656,16.2965,131.93,131.89,100.0]
[1719168980954,16.2965,131.93,131.87,107.583]
[1719168981262,16.2965,131.93,131.87,7.583]
[1719168981451,16.2965,131.93,131.86,7.5836]
[1719168981939,16.2965,131.93,131.85,7.5841]
[1719168982766,45.0,131.92,131.85,7.5841]
[1719168985664,45.0,131.92,131.86,7.5837]
[1719168986037,45.0,131.92,131.85,107.5842]
[1719168992445,16.2965,131.93,131.85,107.5842]
[1719168992644,16.2965,131.93,131.87,114.3828]
[1719168993159,16.2965,131.93,131.88,7.5826]
[1719168995272,16.2965,131.93,131.87,114.3829]
[1719168995646,16.2965,131.93,131.88,107.5825]
[1719168995857,16.2965,131.93,131.88,114.3825]
[1719168999068,16.2965,131.93,131.89,100.0]
[1719169002165,16.2965,131.93,131.88,100.0]
[1719169002382,16.2965,131.93,131.87,7.583]
[1719169002596,16.2965,131.93,131.86,160.0135]
[1719169003294,16.2965,131.93,131.87,7.5831]
[1719169003882,16.2965,131.93,131.86,153.2135]
[1719169004783,16.2965,131.93,131.87,7.583]
[1719169005888,16.2965,131.93,131.86,7.5835]
[1719169009585,51.2637,131.92,131.86,7.5835]
[1719169009967,59.16876343,131.92,131.86,7.5835]
[1719169016284,59.16876343,131.92,131.85,7.5841]
[1719169020309,59.16876343,131.92,131.86,7.5836]
[1719169021906,51.2637,131.92,131.86,7.5836]
[1719169023203,6.2637,131.92,131.85,100.0]
[1719169023417,6.2637,131.92,131.87,107.5831]
[1719169023715,16.2965,131.93,131.91,7.5806]
[1719169024009,22.2691,131.96,131.92,7.5801]
[1719169024214,15.7305,131.96,131.93,7.5797]
[1719169024396,15.7305,131.96,131.92,107.5803]
[1719169024595,15.7305,131.96,131.91,107.5806]
[1719169024899,15.7305,131.96,131.92,7.5802]
[1719169025100,15.7305,131.96,131.91,107.5806]
[1719169025307,15.7305,131.96,131.9,114.3812]
[1719169026118,15.7305,131.96,131.9,107.5812]
[1719169026816,15.7305,131.96,131.91,7.5808]
[1719169028194,15.7305,131.96,131.92,7.5803]
[1719169031019,15.7305,131.96,131.91,7.5806]
[1719169031322,15.7305,131.96,131.92,7.5803]
[1719169032023,15.7305,131.96,131.92,100.0]
[1719169033931,15.7305,131.96,131.92,107.5802]
[1719169039223,6.5386,131.99,131.92,107.5802]
[1719169039466,22.7464,131.99,131.93,7.5795]
[1719169039615,22.7464,131.99,131.93,100.0]
[1719169041738,22.7464,131.99,131.93,107.5797]
[1719169041916,22.7464,131.99,131.93,100.0]
[1719169044104,22.7464,131.99,131.94,7.5788]
[1719169044304,22.7464,131.99,131.95,100.0]
[1719169055429,2.13888763,132.0,131.95,100.0]
[1719169055742,2.13888763,132.0,131.96,14.3777]
[1719169056040,16.4677,132.02,131.95,207.5783]
[1719169056219,16.4677,132.02,131.95,214.3783]
[1719169056545,16.4677,132.02,131.95,207.5783]
[1719169056921,16.4677,132.02,131.95,214.3783]
[1719169057930,16.4677,132.02,131.96,0.41542825]
[1719169059748,16.4677,132.02,131.96,7.99312825]
[1719169059948,23.0232,132.01,131.93,200.0]
[1719169060150,45.0,132.0,131.93,100.0]
[1719169060452,45.0,132.0,131.91,200.0]
[1719169060624,45.0,132.0,131.91,206.8]
[1719169061046,45.0,132.0,131.92,7.5801]
[1719169066635,16.2867,131.99,131.89,200.0]
[1719169066839,7.605,132.03,131.9,7.5811]
[1719169066840,16.2867,131.97,131.9,7.5811]
[1719169067227,16.2867,131.97,131.89,207.5819]
[1719169067435,16.2867,131.97,131.89,200.0]
[1719169069028,16.2867,131.97,131.9,7.5813]
[1719169080060,16.2867,131.97,131.89,200.0]
[1719169080259,16.2867,131.97,131.92,100.0]
[1719169080435,16.2867,131.97,131.93,7.5794]
[1719169081538,16.2867,131.97,131.92,107.58]
[1719169081758,16.2867,131.97,131.93,7.5796]
[1719169082335,16.2867,131.97,131.94,7.5791]
[1719169082534,16.2867,131.97,131.93,7.5795]
[1719169085056,16.2867,131.97,131.92,107.5801]
[1719169086341,16.2867,131.97,131.92,7.5801]
[1719169091766,16.2867,131.97,131.91,107.5807]
[1719169097076,16.2867,131.97,131.89,45.63]
[1719169097077,16.2867,131.97,131.87,100.0]
[1719169097257,16.3805,131.94,131.88,7.5823]
[1719169097870,16.3805,131.94,131.87,7.583]
[1719169098688,16.3805,131.94,131.88,7.5824]
[1719169100190,16.3805,131.94,131.89,7.582]
[1719169101356,16.3805,131.94,131.88,7.5823]
[1719169104900,16.3805,131.94,131.89,7.5819]
[1719169105475,16.3805,131.94,131.89,107.5819]
[1719169106159,16.3805,131.94,131.89,207.5819]
[1719169106364,16.3805,131.94,131.9,7.5813]
[1719169106580,16.3805,131.94,131.89,207.5819]
[1719169106773,16.3805,131.94,131.89,107.582]
[1719169106972,16.3805,131.94,131.9,7.5813]
[1719169107283,16.3805,131.94,131.89,207.5819]
[1719169109591,16.3805,131.94,131.9,7.5814]
[1719169118081,16.3805,131.94,131.89,207.5818]
[1719169123797,16.3805,131.94,131.87,253.213]
[1719169124098,16.3805,131.94,131.87,7.583]
[1719169124289,16.3805,131.94,131.86,7.5836]
[1719169125104,45.0,131.93,131.87,7.5831]
[1719169125782,45.0,131.93,131.86,7.5835]
[1719169126901,45.0,131.93,131.87,7.5831]
[1719169128211,45.0,131.93,131.86,7.5835]
[1719169128911,45.0,131.93,131.87,7.5831]
[1719169131779,45.0,131.93,131.88,7.5826]
[1719169133794,45.0,131.93,131.85,200.0]
[1719169133795,45.0,131.93,131.87,7.583]
[1719169140616,45.0,131.93,131.88,7.5826]
[1719169141405,45.0,131.93,131.87,7.5829]
[1719169141818,22.37283265,131.94,131.88,7.5825]
[1719169142318,16.3805,131.94,131.89,7.582]
[1719169142623,16.3805,131.94,131.88,7.5823]
[1719169145026,16.3805,131.94,131.87,207.583]
[1719169145328,16.3805,131.94,131.87,200.0]
[1719169146116,16.3805,131.94,131.86,7.5835]
[1719169150139,16.3805,131.94,131.87,7.5831]
[1719169150720,16.3805,131.94,131.87,100.0]
[1719169151027,16.3805,131.94,131.87,200.0]
[1719169151418,16.3805,131.94,131.88,7.5824]
[1719169155030,16.3805,131.94,131.87,214.383]
[1719169155335,16.3805,131.94,131.87,207.583]
[1719169156142,16.3805,131.94,131.88,7.5825]
[1719169156343,16.3805,131.94,131.89,107.5818]
[1719169156657,16.3805,131.94,131.89,206.8]
[1719169157634,16.3805,131.94,131.89,214.3818]
[1719169158048,16.3805,131.94,131.89,207.5818]
[1719169161945,16.3805,131.94,131.9,7.5813]
[1719169166628,16.3805,131.94,131.91,7.5808]
[1719169170060,16.3805,131.94,131.9,7.5812]
[1719169173254,16.3805,131.94,131.91,7.5808]
[1719169177958,16.3805,131.94,131.9,7.5814]
[1719169178130,16.3805,131.94,131.87,218.9579]
[1719169179037,16.3805,131.94,131.89,7.5818]
[1719169179468,16.3805,131.94,131.88,7.5824]
[1719169181063,22.3905,131.92,131.86,7.5834]
[1719169182044,22.3905,131.92,131.87,7.583]
[1719169182244,22.3905,131.92,131.88,7.5826]
[1719169183138,22.3905,131.92,131.89,7.5819]
[1719169185263,22.3905,131.92,131.88,7.5825]
[1719169185647,22.3905,131.92,131.87,206.8]
[1719169185648,22.3905,131.92,131.89,100.0]
[1719169185851,15.8224,131.92,131.89,100.0]
[1719169186255,15.8224,131.92,131.89,200.0]
[1719169186449,22.6227,131.95,131.9,0.60601522]
[1719169190549,16.4113,131.95,131.91,200.0]
[1719169190861,6.2114,131.98,131.92,7.40592334]
[1719169191068,6.2114,131.98,131.93,100.60587746]
[1719169193280,6.2114,131.98,131.93,100.0]
[1719169193737,6.2114,131.98,131.91,152.43]
[1719169193934,6.2114,131.98,131.91,145.63]
[1719169194566,6.2114,131.98,131.91,153.2107]
[1719169196746,6.2114,131.98,131.92,7.5802]
[1719169197165,6.2114,131.98,131.91,7.5807]
[1719169197878,16.1993,131.97,131.91,7.5807]
[1719169199148,16.1993,131.97,131.9,100.0]
[1719169199353,16.1993,131.97,131.89,100.0]
[1719169200055,16.1993,131.97,131.91,7.5808]
[1719169201563,16.1993,131.97,131.9,7.5812]
[1719169201899,16.1993,131.97,131.89,7.5818]
[1719169202387,45.0,131.96,131.89,7.5818]
[1719169202571,45.0,131.96,131.88,107.5824]
[1719169202773,45.0,131.96,131.87,100.0]
[1719169202774,16.1993,131.94,131.87,100.0]
[1719169203080,16.1993,131.92,131.84,100.0]
[1719169203289,16.1993,131.92,131.84,7.5849]
[1719169203758,45.0,131.91,131.82,107.5859]
[1719169203958,45.0,131.91,131.83,7.5852]
[1719169204189,45.0,131.91,131.83,7.5853]
[1719169204511,22.6,131.9,131.83,7.5853]
[1719169207464,22.6,131.9,131.8,100.0]
[1719169207664,16.1993,131.88,131.81,7.5863]
[1719169207981,6.4007,131.87,131.8,7.5871]
[1719169211267,16.1993,131.85,131.78,7.5881]
[1719169212073,16.1993,131.85,131.79,7.5877]
[1719169213892,16.1993,131.85,131.78,7.5883]
[1719169215287,16.1993,131.85,131.76,100.1439883]
[1719169215479,16.1993,131.85,131.77,7.5887]
[1719169215796,16.1993,131.85,131.78,7.5883]
[1719169216004,16.1993,131.85,131.79,7.5878]
[1719169216297,16.1993,131.85,131.78,7.5881]
[1719169219278,45.0,131.84,131.77,7.5887]
[1719169222504,16.1993,131.85,131.79,7.5876]
[1719169222908,16.1993,131.85,131.8,2.27465178]
[1719169223284,16.1993,131.85,131.81,100.0]
[1719169223481,16.1993,131.85,131.81,107.5863]
[1719169223907,16.1993,131.85,131.83,7.5853]
[1719169224207,16.1993,131.85,131.81,106.8]
[1719169224208,16.1993,131.85,131.82,7.5858]
[1719169225004,16.1993,131.85,131.83,4.08380943]
[1719169226793,27.72199206,131.9,131.82,111.66970942]
[1719169227135,27.72199206,131.9,131.83,4.08349965]
[1719169227285,27.72199206,131.9,131.83,110.88349965]
[1719169227485,27.72199206,131.9,131.83,104.08349965]
[1719169228310,27.72199206,131.9,131.82,107.5859]
[1719169228311,27.72199206,131.9,131.81,114.3864]
[1719169230814,27.72199206,131.9,131.82,7.586]
[1719169232295,45.0,131.89,131.81,7.5864]
[1719169232488,45.0,131.89,131.8,107.5871]
[1719169232890,45.0,131.89,131.81,7.5866]
[1719169233815,45.0,131.89,131.8,114.387]
[1719169237031,21.6368,131.9,131.84,7.5845]
[1719169237619,21.6368,131.9,131.83,106.8]
[1719169237620,21.6368,131.9,131.83,114.3853]
[1719169239335,21.6368,131.9,131.84,7.5848]
[1719169241239,21.6368,131.9,131.84,7.0848]
[1719169243410,21.6368,131.9,131.83,7.5852]
[1719169243714,21.6368,131.9,131.82,7.5858]
[1719169246635,45.0,131.89,131.82,7.5858]
[1719169246935,52.91715255,131.89,131.82,7.5858]
[1719169247915,52.91715255,131.89,131.81,7.5864]
[1719169248440,16.4014,131.88,131.81,7.5864]
[1719169252342,52.91715255,131.89,131.8,7.5871]
[1719169252343,51.2749,131.87,131.8,7.5871]
[1719169252521,51.2749,131.87,131.79,7.5876]
[1719169252522,15.4472,131.86,131.79,7.5876]
[1719169252719,15.4472,131.86,131.8,7.587]
[1719169253025,15.4472,131.86,131.81,7.5865]
[1719169253339,15.4472,131.86,131.82,7.586]
[1719169253716,15.4472,131.86,131.81,114.3864]
[1719169253935,15.4472,131.86,131.8,7.587]
[1719169255245,15.4472,131.86,131.79,7.5875]
[1719169257426,15.4472,131.86,131.8,107.5871]
[1719169258541,15.4472,131.86,131.8,100.0]
[1719169259945,15.4472,131.86,131.8,107.5872]
[1719169260145,15.4472,131.86,131.81,7.5865]
[1719169261150,15.4472,131.86,131.8,207.5869]
[1719169266643,15.4472,131.86,131.8,200.0]
[1719169268248,15.4472,131.86,131.82,100.0]
[1719169268438,15.4472,131.86,131.82,106.8]
[1719169268644,15.4472,131.86,131.84,100.0]
[1719169268833,15.4472,131.89,131.84,100.0]
[1719169269529,15.4472,131.89,131.82,200.0]
[1719169269954,15.4472,131.89,131.82,100.0]
[1719169270132,15.4472,131.89,131.8,100.0]
[1719169270133,15.4472,131.89,131.8,207.587]
[1719169270327,51.2749,131.88,131.79,0.5]
[1719169271235,15.4472,131.87,131.79,0.5]
[1719169273356,45.0,131.86,131.79,0.5]
[1719169279167,52.91831131,131.86,131.79,0.5]
[1719169279648,22.246,131.85,131.79,0.5]
[1719169279852,22.65121128,131.85,131.79,0.5]
[1719169285873,45.0,131.84,131.79,0.5]
[1719169289573,52.91097156,131.84,131.79,0.5]
[1719169290084,16.2064,131.83,131.79,0.5]
[1719169290253,45.0,131.82,131.79,0.5]
[1719169299953,52.90920672,131.82,131.79,0.5]
[1719169303079,7.90920672,131.82,131.79,8.0877]
[1719169303291,6.44481128,131.85,131.79,0.5]
[1719169303488,6.44481128,131.85,131.79,8.0874]
[1719169303794,6.44481128,131.85,131.79,108.0874]
[1719169304664,6.44481128,131.85,131.79,100.5]
[1719169304866,6.44481128,131.85,131.79,108.0876]
[1719169305183,0.40521128,131.85,131.8,7.5872]
[1719169305587,0.40521128,131.85,131.81,1.16685466]
[1719169306692,0.40521128,131.85,131.8,1.16685466]
[1719169308168,24.03721907,131.86,131.81,100.0]
[1719169308372,24.03721907,131.86,131.81,114.3866]
[1719169308373,16.1299,131.86,131.81,114.3866]
[1719169308762,6.0032,131.88,131.83,100.0]
[1719169309191,24.03380137,131.9,131.86,100.0]
[1719169309356,7.90390137,131.9,131.86,100.0]
[1719169309670,255.0,131.91,131.85,14.3842]
[1719169309870,6.0032,131.92,131.85,6.8]
[1719169310073,6.0032,131.92,131.84,214.3847]
[1719169310383,6.0032,131.92,131.85,7.5841]
[1719169310567,6.0032,131.92,131.86,107.5836]
[1719169310758,6.0032,131.92,131.86,100.0]
[1719169310959,24.03311571,131.93,131.86,114.3835]
[1719169311689,24.03311571,131.93,131.86,214.3835]
[1719169312373,16.1299,131.93,131.87,7.5831]
[1719169312774,16.1299,131.93,131.86,214.3835]
[1719169312982,16.1299,131.93,131.86,207.5835]
[1719169313190,16.1299,131.93,131.86,100.0]
[1719169314811,16.1299,131.93,131.86,107.5836]
[1719169316499,16.1299,131.93,131.87,14.3829]
[1719169316881,19.96156215,131.95,131.88,107.5826]
[1719169317500,19.96156215,131.95,131.88,100.0]
[1719169317800,13.90588933,131.95,131.88,107.5824]
[1719169318005,7.90268933,131.95,131.88,114.3824]
[1719169319713,7.90268933,131.95,131.88,214.3824]
[1719169319908,7.90268933,131.95,131.89,0.80024091]
[1719169320202,7.90268933,131.95,131.9,206.8]
[1719169320388,15.0035,131.97,131.91,0.80011957]
[1719169322521,7.89939284,131.99,131.92,107.5802]
[1719169323186,7.89939284,131.99,131.92,114.3802]
[1719169323417,7.89939284,131.99,131.92,214.3802]
[1719169323793,7.89939284,131.99,131.92,106.8]
[1719169323990,7.89939284,131.99,131.92,200.0]
[1719169325012,7.89939284,131.99,131.92,100.0]
[1719169326719,7.89939284,131.99,131.92,107.5802]
[1719169326902,7.89939284,131.99,131.92,207.5802]
[1719169328622,7.89939284,131.99,131.93,23.8876]
[1719169328931,6.05291544,132.01,131.93,23.8876]
[1719169329106,45.0,132.0,131.93,23.8876]
[1719169329305,45.0,132.0,131.93,30.6876]
[1719169329705,7.90363711,132.01,131.93,30.6876]
[1719169330406,7.90363711,132.01,131.94,100.0]
[1719169330732,7.90363711,132.01,131.94,107.5788]
[1719169331423,7.90363711,132.01,131.94,100.0]
[1719169332253,7.90363711,132.01,131.96,100.0]
[1719169332402,275.95607752,132.04,131.96,100.0]
[1719169332605,23.09496515,132.04,131.96,100.0]
[1719169332935,25.04435964,132.04,131.96,100.0]
[1719169333931,45.0,132.03,131.96,107.5776]
[1719169334108,45.0,132.03,131.97,2.31407339]
[1719169335625,10.04085964,132.04,131.98,106.0154]
[1719169335831,10.04085964,132.04,132.0,107.5756]
[1719169336122,16.3482,132.08,132.0,207.5755]
[1719169336299,16.3482,132.08,132.0,107.5755]
[1719169336500,18.48708763,132.08,132.0,100.0]
[1719169337328,18.48708763,132.08,131.99,7.5762]
[1719169337530,18.48708763,132.08,132.0,107.5756]
[1719169337531,45.0,132.07,132.0,107.5756]
[1719169338324,45.0,132.07,132.0,100.0]
[1719169339125,45.0,132.07,132.0,107.5756]
[1719169340228,45.0,132.07,132.01,7.5751]
[1719169340431,24.61922822,132.08,132.01,7.5751]
[1719169340923,18.48708763,132.08,132.01,7.5751]
[1719169341515,18.48708763,132.08,132.02,7.5745]
[1719169341727,18.48708763,132.08,132.02,100.0]
[1719169341932,2.13888763,132.08,132.03,7.5737]
[1719169342301,2.13888763,132.08,132.04,100.0]
[1719169342504,8.61575507,132.09,132.05,7.5725]
[1719169342505,0.7150248,132.09,132.05,7.5725]
[1719169342741,0.7150248,132.09,132.04,107.5732]
[1719169342941,0.7150248,132.09,132.05,7.5726]
[1719169343498,0.7150248,132.09,132.04,207.5732]
[1719169343931,0.7150248,132.09,132.05,7.5725]
[1719169346737,0.7150248,132.09,132.04,100.0]
[1719169350138,0.7150248,132.09,132.03,30.0317]
[1719169350306,0.7150248,132.09,132.03,16.0654]
[1719169350639,0.7150248,132.09,132.02,107.5743]
[1719169352919,0.7150248,132.09,132.03,7.5738]
[1719169353436,0.7150248,132.09,132.05,7.5727]
[1719169354053,0.7150248,132.09,132.06,107.5722]
[1719169356041,0.7150248,132.09,132.08,100.0]
[1719169356343,0.7150248,132.09,132.08,107.5711]
[1719169356632,0.7150248,132.09,132.08,100.0]
[1719169362143,0.7150248,132.09,132.06,100.0]
[1719169362520,0.7150248,132.09,132.06,107.5719]
[1719169363646,0.7150248,132.09,132.08,100.0]
[1719169364840,0.7150248,132.09,132.08,107.5711]
[1719169369354,0.7150248,132.09,132.08,100.0]
[1719169370823,0.7150248,132.09,132.06,107.572]
[1719169371026,0.7150248,132.09,132.06,100.0]
[1719169371346,0.7150248,132.09,132.05,23.6072]
[1719169371528,0.7150248,132.09,132.06,7.5722]
[1719169371929,0.7150248,132.09,132.06,107.5722]
[1719169374037,0.7150248,132.09,132.06,100.0]
[1719169374958,0.7150248,132.09,132.06,107.5722]
[1719169378458,0.7150248,132.09,132.08,100.0]
[1719169381761,0.7150248,132.09,132.08,107.5711]
[1719169384263,0.7150248,132.09,132.06,100.0]
[1719169385052,0.7150248,132.09,132.06,107.572]
[1719169388466,0.7150248,132.09,132.03,100.0]
[1719169388669,0.7150248,132.09,132.03,107.5739]
[1719169389252,45.7150248,132.09,132.03,107.5739]
[1719169390878,45.7150248,132.09,132.04,7.5733]
[1719169393967,0.7150248,132.09,132.07,100.0]
[1719169394172,0.7150248,132.09,132.07,107.5717]
[1719169394366,0.7150248,132.09,132.07,100.0]
[1719169394676,0.7150248,132.09,132.07,107.5714]